fUSD/lending_fUSD_20250630
["ID","MTS","AMOUNT","RATE_DAILY","PERIOD"]
[368659281,1751271031612,-155.09,0.00014161,2]
[368659282,1751271031623,-155.09,0.00014169,2]
[368659283,1751271031634,-155.09,0.00014177,2]
[368659284,1751271031644,-155.09,0.00014185,2]
[368659285,1751271031655,-155.09,0.00014193,2]
[368659286,1751271031666,-250.0,0.00014194,2]
[368659287,1751271031677,-188.30328656,0.00014194,2]
[368659288,1751271031829,-957.78671344,0.00014194,2]
[368659289,1751271031840,-1200.0,0.000142,2]
[368659290,1751271031851,-36.81859971,0.000142,2]
[368659291,1751271031864,-263.18140029,0.000142,2]
[368659292,1751271031875,-1017.19,0.00014201,2]
[368659293,1751271031885,-14053.80044912,0.00014201,2]
[368659294,1751271031898,-2153.76133533,0.00014201,2]
[368659304,1751271032070,-1021.78671344,0.00014201,2]
[368659306,1751271032084,-269.58024975,0.00014201,2]
[368659308,1751271032098,-392.40125236,0.00014201,2]
[368659310,1751271032109,-166.99,0.00014201,2]
[368659312,1751271032120,-1000.0,0.00014201,2]
[368659313,1751271032131,-697.72882364,0.00014267,2]
[368659314,1751271032145,-23202.27117636,0.00014267,2]
[368659315,1751271032155,-200.0,0.00014402,2]
[368659316,1751271032167,-4.00685317,0.0001451,7]
[368659317,1751271032178,-150.0,0.00014512,2]
[368659318,1751271032189,-11929.29,0.00014525,2]
[368659319,1751271032200,-201.63,0.00014581,2]
[368659320,1751271032211,-4936.69,0.00014617,2]
[368659321,1751271032222,-1330.0,0.00014644,2]
[368659322,1751271032233,-669.61364086,0.000147,2]
[368659523,1751271040128,-4202.09,0.00014201,2]
[368659525,1751271040138,-12458.38635914,0.000147,2]
[368659527,1751271040147,-214.99,0.00014856,2]
[368659529,1751271040157,-170.39,0.00014932,2]
[368659531,1751271040166,-266.0,0.0001498,2]
[368659533,1751271040175,-1003.759,0.00014994,2]
[368659535,1751271040185,-10717.49097442,0.00014995,2]
[368659537,1751271040194,-532.75096981,0.00014995,2]
[368659539,1751271040203,-238.87895638,0.00014995,2]
[368659541,1751271040212,-250.0,0.00015,2]
[368659543,1751271040222,-490.0,0.00015094,2]
[368659545,1751271040231,-1723.42,0.00015094,2]
[368659547,1751271040241,-542.35,0.00015094,2]
[368659549,1751271040250,-1255.36,0.00015094,2]
[368659551,1751271040260,-490.0,0.00015094,2]
[368659553,1751271040269,-490.0,0.00015094,2]
[368659555,1751271040279,-3594.63,0.00015094,2]
[368659557,1751271040288,-490.0,0.00015094,2]
[368659559,1751271040298,-1122.83,0.00015094,2]
[368659561,1751271040308,-490.0,0.00015094,2]
[368659563,1751271040317,-490.0,0.00015094,2]
[368659565,1751271040328,-1492.59,0.00015094,2]
[368659567,1751271040338,-490.0,0.00015094,2]
[368659569,1751271040348,-1353.18,0.00015094,2]
[368659571,1751271040357,-1215.96,0.00015094,2]
[368659573,1751271040370,-490.0,0.00015094,2]
[368659575,1751271040380,-490.0,0.00015094,2]
[368659577,1751271040389,-1258.62,0.00015094,2]
[368659579,1751271040398,-1336.45,0.00015094,2]
[368659581,1751271040407,-1445.74,0.00015094,2]
[368659583,1751271040416,-5527.32,0.00015094,2]
[368659585,1751271040426,-180.0,0.00015094,2]
[368659587,1751271040435,-979.47,0.00015094,2]
[368659589,1751271040446,-1370.49,0.00015094,2]
[368659591,1751271040456,-490.0,0.00015094,2]
[368659593,1751271040465,-490.0,0.00015094,2]
[368659595,1751271040474,-490.0,0.00015095,2]
[368659597,1751271040484,-490.0,0.00015095,2]
[368659599,1751271040494,-490.0,0.00015095,2]
[368659601,1751271040503,-490.0,0.00015095,2]
[368659603,1751271040513,-490.0,0.00015095,2]
[368659605,1751271040522,-842.52,0.00015095,2]
[368659607,1751271040531,-490.0,0.00015095,2]
[368659609,1751271040541,-494.56455781,0.00015095,2]
[368659611,1751271040550,-490.0,0.00015095,2]
[368659613,1751271040560,-844.33,0.00015095,2]
[368659615,1751271040569,-1053.11,0.00015095,2]
[368659617,1751271040579,-794.99,0.00015095,2]
[368659619,1751271040588,-730.06,0.00015095,2]
[368659621,1751271040598,-2279.68,0.00015095,2]
[368659623,1751271040607,-748.09,0.00015095,2]
[368659625,1751271040617,-785.52,0.00015095,2]
[368659627,1751271040627,-490.0,0.00015095,2]
[368659629,1751271040636,-550.61,0.00015095,2]
[368659631,1751271040646,-2496.58,0.00015095,2]
[368659633,1751271040655,-1420.56,0.00015095,2]
[368659635,1751271040665,-2255.43,0.00015095,2]
[368659637,1751271040674,-490.0,0.00015095,2]
[368659639,1751271040683,-1823.94,0.00015095,2]
[368659641,1751271040693,-1307.38,0.00015095,2]
[368659643,1751271040702,-753.62,0.00015095,2]
[368659645,1751271040712,-1503.63,0.00015095,2]
[368659647,1751271040721,-490.0,0.00015095,2]
[368659649,1751271040731,-2457.54,0.00015095,2]
[368659651,1751271040740,-1559.77,0.00015095,2]
[368659653,1751271040749,-490.0,0.00015095,2]
[368659655,1751271040759,-1690.7,0.00015095,2]
[368659657,1751271040769,-576.31,0.00015095,2]
[368659660,1751271040779,-2307.29,0.00015095,2]
[368659662,1751271040789,-1869.33,0.00015095,2]
[368659664,1751271040798,-1462.81,0.00015095,2]
[368659666,1751271040808,-2701.94,0.00015095,2]
[368659668,1751271040817,-970.94,0.00015095,2]
[368659670,1751271040827,-1971.11,0.00015095,2]
[368659672,1751271040836,-1706.8,0.00015095,2]
[368659674,1751271040845,-2612.0,0.00015095,2]
[368659676,1751271040854,-490.0,0.00015095,2]
[368659678,1751271040863,-490.0,0.00015095,2]
[368659680,1751271040872,-1183.04,0.00015095,2]
[368659682,1751271040881,-2621.53,0.00015095,2]
[368659684,1751271040891,-2773.3,0.00015095,2]
[368659686,1751271040901,-490.0,0.00015095,2]
[368659688,1751271040910,-2534.07,0.00015095,2]
[368659690,1751271040919,-1954.99,0.00015095,2]
[368659692,1751271040929,-5509.0,0.000151,3]
[368659694,1751271040938,-10717.49097433,0.00015126,2]
[368659696,1751271040947,-155.97,0.00015185,2]
[368659698,1751271040957,-155.97,0.0001519,2]
[368659700,1751271040966,-155.97,0.00015195,2]
[368659702,1751271040975,-155.97,0.000152,2]
[368659704,1751271040985,-155.97,0.00015206,2]
[368659706,1751271040994,-6652.85961481,0.0001521,2]
[368659708,1751271041003,-155.97,0.00015211,2]
[368659710,1751271041012,-155.97,0.00015216,2]
[368659712,1751271041021,-155.97,0.00015221,2]
[368659714,1751271041030,-155.97,0.00015226,2]
[368659716,1751271041039,-155.97,0.00015231,2]
[368659718,1751271041048,-155.97,0.00015236,2]
[368659720,1751271041058,-155.97,0.00015241,2]
[368659722,1751271041067,-155.97,0.00015246,2]
[368659724,1751271041076,-155.97,0.00015251,2]
[368659726,1751271041085,-155.97,0.00015256,2]
[368659728,1751271041095,-10717.49097433,0.00015257,2]
[368659730,1751271041104,-155.97,0.00015261,2]
[368659732,1751271041113,-178.39774773,0.00015269,2]
[368659734,1751271041122,-238.87895637,0.00015308,2]
[368659736,1751271041132,-490.0,0.00015309,2]
[368659738,1751271041141,-490.0,0.00015309,2]
[368659740,1751271041151,-490.0,0.00015309,2]
[368659742,1751271041160,-490.0,0.00015309,2]
[368659744,1751271041170,-490.0,0.00015309,2]
[368659746,1751271041180,-673.59,0.00015309,2]
[368659748,1751271041189,-1601.09,0.00015309,2]
[368659750,1751271041198,-1372.34,0.00015309,2]
[368659752,1751271041208,-490.0,0.00015309,2]
[368659754,1751271041217,-490.0,0.00015309,2]
[368659756,1751271041226,-1542.19,0.00015309,2]
[368659758,1751271041235,-490.0,0.00015309,2]
[368659760,1751271041246,-1924.26,0.00015309,2]
[368659762,1751271041256,-1248.23,0.00015309,2]
[368659764,1751271041265,-515.68,0.00015309,2]
[368659766,1751271041275,-514.13,0.00015309,2]
[368659768,1751271041284,-526.66,0.00015309,2]
[368659770,1751271041294,-3314.42,0.00015309,2]
[368659772,1751271041304,-19721.03,0.0001531,2]
[368659774,1751271041313,-9999.99,0.0001531,2]
[368659776,1751271041324,-29999.99,0.0001531,2]
[368659778,1751271041333,-6652.85961479,0.00015317,2]
[368659780,1751271041343,-150.0,0.0001532,2]
[368659782,1751271041352,-503.35442091,0.00015368,2]
[368659784,1751271041362,-861.15,0.00015368,2]
[368659786,1751271041374,-490.0,0.00015368,2]
[368659788,1751271041383,-490.0,0.00015368,2]
[368659790,1751271041393,-502.49069509,0.00015368,2]
[368659792,1751271041404,-490.0,0.00015368,2]
[368659794,1751271041415,-597.94,0.00015368,2]
[368659796,1751271041424,-490.0,0.00015368,2]
[368659798,1751271041434,-493.41855856,0.00015368,2]
[368659800,1751271041445,-490.0,0.00015368,2]
[368659802,1751271041454,-650.67,0.00015368,2]
[368659804,1751271041464,-490.0,0.00015368,2]
[368659806,1751271041473,-2123.32,0.00015368,2]
[368659808,1751271041483,-3209.094758,0.00015368,2]
[368659810,1751271041492,-157.60867,0.00015368,2]
[368659812,1751271041502,-402.446869,0.00015368,2]
[368659814,1751271041511,-154.8076,0.00015368,2]
[368659816,1751271041520,-1694.73,0.00015368,2]
[368659818,1751271041530,-490.0,0.00015368,2]
[368659820,1751271041539,-3370.704237,0.00015368,2]
[368659822,1751271041549,-166.666666,0.00015368,2]
[368659824,1751271041559,-1827.8,0.00015368,2]
[368659826,1751271041568,-490.0,0.00015368,2]
[368659828,1751271041578,-3642.556682,0.00015368,2]
[368659830,1751271041587,-490.0,0.00015368,2]
[368659832,1751271041596,-1332.89,0.00015368,2]
[368659834,1751271041606,-2031.72,0.00015368,2]
[368659836,1751271041615,-1723.42,0.00015368,2]
[368659838,1751271041624,-542.35,0.00015368,2]
[368659840,1751271041634,-8242.25,0.00015368,2]
[368659842,1751271041643,-1255.36,0.00015368,2]
[368659844,1751271041652,-490.0,0.00015368,2]
[368659846,1751271041662,-490.0,0.00015368,2]
[368659848,1751271041671,-3594.63,0.00015368,2]
[368659850,1751271041680,-1680.91,0.00015368,2]
[368659852,1751271041690,-2162.69,0.00015368,2]
[368659854,1751271041699,-490.0,0.00015368,2]
[368659856,1751271041709,-1122.83,0.00015368,2]
[368659858,1751271041718,-970.71,0.00015368,2]
[368659869,1751271041809,-2560.86,0.00015368,2]
[368659871,1751271041818,-1492.59,0.00015368,2]
[368659873,1751271041827,-490.0,0.00015368,2]
[368659875,1751271041836,-1353.18,0.00015368,2]
[368659877,1751271041845,-1215.96,0.00015368,2]
[368659879,1751271041854,-1120.13,0.00015368,2]
[368659881,1751271041863,-490.0,0.00015368,2]
[368659882,1751271041872,-490.0,0.00015368,2]
[368659883,1751271041881,-11078.57,0.00015368,2]
[368659884,1751271041890,-490.0,0.00015368,2]
[368659885,1751271041899,-1258.62,0.00015368,2]
[368659886,1751271041908,-1336.45,0.00015368,2]
[368659887,1751271041917,-490.0,0.00015368,2]
[368659888,1751271041926,-1445.74,0.00015368,2]
[368659889,1751271041934,-5527.32,0.00015368,2]
[368659890,1751271041943,-931.54,0.00015368,2]
[368659891,1751271041952,-979.47,0.00015368,2]
[368659892,1751271041961,-1370.49,0.00015368,2]
[368659893,1751271041970,-490.0,0.00015368,2]
[368659894,1751271041979,-490.0,0.00015368,2]
[368659895,1751271041988,-7143.96,0.00015368,2]
[368659897,1751271041997,-436.34,0.00015369,2]
[368659899,1751271042007,-490.0,0.00015369,2]
[368659901,1751271042016,-490.0,0.00015369,2]
[368659903,1751271042025,-490.0,0.00015369,2]
[368659905,1751271042034,-490.0,0.00015369,2]
[368659907,1751271042043,-842.52,0.00015369,2]
[368659909,1751271042052,-844.33,0.00015369,2]
[368659911,1751271042061,-462.25533491,0.00015369,2]
[368659915,1751271042093,-590.85466509,0.00015369,2]
[368659917,1751271042102,-794.99,0.00015369,2]
[368659919,1751271042111,-730.06,0.00015369,2]
[368659921,1751271042120,-126.93240925,0.00015369,2]
[368659927,1751271042169,-432.08274474,0.00015369,2]
[368659929,1751271042181,-1720.66484601,0.00015369,2]
[368659931,1751271042191,-748.09,0.00015369,2]
[368659933,1751271042201,-785.52,0.00015369,2]
[368659935,1751271042210,-490.0,0.00015369,2]
[368659937,1751271042220,-550.61,0.00015369,2]
[368659939,1751271042229,-2496.58,0.00015369,2]
[368659941,1751271042240,-1420.56,0.00015369,2]
[368659943,1751271042250,-2255.43,0.00015369,2]
[368659945,1751271042260,-490.0,0.00015369,2]
[368659947,1751271042269,-1823.94,0.00015369,2]
[368659949,1751271042279,-1307.38,0.00015369,2]
[368659951,1751271042288,-753.62,0.00015369,2]
[368659953,1751271042298,-1503.63,0.00015369,2]
[368659955,1751271042308,-203.60628213,0.00015369,2]
[368659957,1751271042318,-2457.54,0.00015369,2]
[368659959,1751271042327,-1559.77,0.00015369,2]
[368659961,1751271042336,-490.0,0.00015369,2]
[368659963,1751271042346,-1690.7,0.00015369,2]
[368659965,1751271042356,-576.31,0.00015369,2]
[368659967,1751271042368,-2307.29,0.00015369,2]
[368659969,1751271042377,-1869.33,0.00015369,2]
[368659971,1751271042386,-1462.81,0.00015369,2]
[368659973,1751271042395,-2701.94,0.00015369,2]
[368659975,1751271042405,-970.94,0.00015369,2]
[368659977,1751271042415,-1971.11,0.00015369,2]
[368659979,1751271042424,-1706.8,0.00015369,2]
[368659980,1751271042434,-2612.0,0.00015369,2]
[368659983,1751271042444,-490.0,0.00015369,2]
[368659984,1751271042453,-490.0,0.00015369,2]
[368659986,1751271042462,-1183.04,0.00015369,2]
[368659988,1751271042471,-2621.53,0.00015369,2]
[368659990,1751271042481,-2773.3,0.00015369,2]
[368659992,1751271042491,-490.0,0.00015369,2]
[368659994,1751271042501,-2534.07,0.00015369,2]
[368659996,1751271042511,-1954.99,0.00015369,2]
[368659998,1751271042520,-10717.49097433,0.00015387,2]
[368660000,1751271042530,-500.0,0.000154,5]
[368660002,1751271042540,-5509.0,0.000154,5]
[368660004,1751271042549,-6652.85961479,0.00015424,2]
[368660006,1751271042558,-490.0,0.00015499,2]
[368660008,1751271042568,-490.0,0.00015499,2]
[368660010,1751271042577,-560.11,0.00015499,2]
[368660012,1751271042586,-579.14,0.00015499,2]
[368660014,1751271042595,-9096.99,0.00015499,2]
[368660016,1751271042604,-995.45,0.00015499,2]
[368660018,1751271042613,-1167.57,0.00015499,2]
[368660020,1751271042622,-1979.41,0.00015499,2]
[368660022,1751271042631,-2047.72,0.00015499,2]
[368660024,1751271042640,-2774.11,0.00015499,2]
[368660026,1751271042649,-779.5,0.00015499,2]
[368660028,1751271042659,-2128.46,0.00015499,2]
[368660030,1751271042667,-990.29,0.00015499,2]
[368660032,1751271042676,-1816.16,0.00015499,2]
[368660034,1751271042686,-500.0,0.00015499,2]
[368660036,1751271042696,-3469.77,0.00015499,2]
[368660038,1751271042705,-2051.53,0.00015499,2]
[368660040,1751271042714,-1100.0,0.000155,5]
[368660042,1751271042723,-10717.49097433,0.00015518,2]
[368660044,1751271042732,-6652.85961479,0.0001553,2]
[368660045,1751271042741,-178.39774767,0.00015582,2]
[368660048,1751271042750,-490.0,0.00015583,2]
[368660049,1751271042759,-490.0,0.00015583,2]
[368660051,1751271042769,-490.0,0.00015583,2]
[368660054,1751271042778,-490.0,0.00015583,2]
[368660056,1751271042787,-673.59,0.00015583,2]
[368660057,1751271042796,-1601.09,0.00015583,2]
[368660059,1751271042806,-1372.34,0.00015583,2]
[368660061,1751271042815,-490.0,0.00015583,2]
[368660063,1751271042824,-490.0,0.00015583,2]
[368660065,1751271042833,-1542.19,0.00015583,2]
[368660067,1751271042841,-1924.26,0.00015583,2]
[368660069,1751271042851,-1248.23,0.00015583,2]
[368660071,1751271042860,-515.68,0.00015583,2]
[368660073,1751271042869,-514.13,0.00015583,2]
[368660075,1751271042878,-526.66,0.00015583,2]
[368660077,1751271042887,-3314.42,0.00015583,2]
[368660079,1751271042896,-1700.0,0.000156,5]
[368660081,1751271042906,-1680.0,0.0001562,2]
[368660083,1751271042915,-166.99,0.00015621,2]
[368660085,1751271042924,-238.87895637,0.00015621,2]
[368660087,1751271042933,-6652.85961479,0.00015637,2]
[368660089,1751271042943,-861.15,0.00015642,2]
[368660091,1751271042951,-490.0,0.00015642,2]
[368660093,1751271042960,-490.0,0.00015642,2]
[368660095,1751271042969,-493.60599903,0.00015642,2]
[368660097,1751271042978,-597.94,0.00015642,2]
[368660099,1751271042986,-490.0,0.00015642,2]
[368660101,1751271042995,-490.0,0.00015642,2]
[368660103,1751271043004,-650.67,0.00015642,2]
[368660105,1751271043013,-490.0,0.00015642,2]
[368660107,1751271043022,-2123.32,0.00015642,2]
[368660109,1751271043031,-3209.094758,0.00015642,2]
[368660111,1751271043040,-402.446869,0.00015642,2]
[368660113,1751271043049,-1694.73,0.00015642,2]
[368660115,1751271043060,-490.0,0.00015642,2]
[368660117,1751271043069,-3370.704237,0.00015642,2]
[368660119,1751271043079,-1827.8,0.00015642,2]
[368660121,1751271043088,-490.0,0.00015642,2]
[368660123,1751271043097,-3642.556682,0.00015642,2]
[368660125,1751271043106,-490.0,0.00015642,2]
[368660127,1751271043115,-1332.89,0.00015642,2]
[368660129,1751271043125,-2031.72,0.00015642,2]
[368660131,1751271043135,-1723.42,0.00015642,2]
[368660133,1751271043144,-8242.25,0.00015642,2]
[368660135,1751271043153,-1255.36,0.00015642,2]
[368660137,1751271043163,-490.0,0.00015642,2]
[368660139,1751271043172,-490.0,0.00015642,2]
[368660141,1751271043181,-3594.63,0.00015642,2]
[368660143,1751271043191,-1680.91,0.00015642,2]
[368660145,1751271043200,-2162.69,0.00015642,2]
[368660147,1751271043209,-490.0,0.00015642,2]
[368660149,1751271043220,-1122.83,0.00015642,2]
[368660151,1751271043230,-970.71,0.00015642,2]
[368660153,1751271043239,-2560.86,0.00015642,2]
[368660155,1751271043248,-1492.59,0.00015642,2]
[368660157,1751271043257,-490.0,0.00015642,2]
[368660159,1751271043267,-1353.18,0.00015642,2]
[368660161,1751271043276,-1215.96,0.00015642,2]
[368660163,1751271043285,-1120.13,0.00015642,2]
[368660165,1751271043293,-490.0,0.00015642,2]
[368660167,1751271043303,-490.0,0.00015642,2]
[368660169,1751271043312,-11078.57,0.00015642,2]
[368660171,1751271043321,-490.0,0.00015642,2]
[368660173,1751271043331,-1258.62,0.00015642,2]
[368660175,1751271043342,-1336.45,0.00015642,2]
[368660177,1751271043351,-1445.74,0.00015642,2]
[368660179,1751271043360,-5527.32,0.00015642,2]
[368660181,1751271043374,-931.54,0.00015642,2]
[368660183,1751271043383,-979.47,0.00015642,2]
[368660185,1751271043392,-1370.49,0.00015642,2]
[368660187,1751271043400,-179.03240423,0.00015642,2]
[368660189,1751271043413,-310.96759577,0.00015642,2]
[368660191,1751271043422,-490.0,0.00015642,2]
[368660193,1751271043431,-1838.86040415,0.00015642,2]
[368660195,1751271043442,-5305.09959585,0.00015642,2]
[368660197,1751271043451,-490.0,0.00015643,2]
[368660199,1751271043461,-490.0,0.00015643,2]
[368660201,1751271043470,-490.0,0.00015643,2]
[368660203,1751271043479,-490.0,0.00015643,2]
[368660205,1751271043488,-842.52,0.00015643,2]
[368660207,1751271043498,-844.33,0.00015643,2]
[368660209,1751271043508,-1053.11,0.00015643,2]
[368660211,1751271043517,-794.99,0.00015643,2]
[368660213,1751271043527,-730.06,0.00015643,2]
[368660215,1751271043536,-2279.68,0.00015643,2]
[368660217,1751271043545,-748.09,0.00015643,2]
[368660219,1751271043555,-785.52,0.00015643,2]
[368660221,1751271043564,-490.0,0.00015643,2]
[368660222,1751271043573,-550.61,0.00015643,2]
[368660223,1751271043583,-2496.58,0.00015643,2]
[368660224,1751271043592,-1420.56,0.00015643,2]
[368660225,1751271043601,-2255.43,0.00015643,2]
[368660226,1751271043611,-490.0,0.00015643,2]
[368660227,1751271043620,-1823.94,0.00015643,2]
[368660228,1751271043629,-1307.38,0.00015643,2]
[368660229,1751271043638,-753.62,0.00015643,2]
[368660230,1751271043647,-1503.63,0.00015643,2]
[368660231,1751271043657,-2457.54,0.00015643,2]
[368660232,1751271043666,-1559.77,0.00015643,2]
[368660233,1751271043675,-490.0,0.00015643,2]
[368660234,1751271043684,-1690.7,0.00015643,2]
[368660235,1751271043693,-576.31,0.00015643,2]
[368660236,1751271043703,-2307.29,0.00015643,2]
[368660237,1751271043712,-1869.33,0.00015643,2]
[368660238,1751271043721,-1462.81,0.00015643,2]
[368660239,1751271043731,-2441.10134384,0.00015643,2]
[368660240,1751271043744,-260.83865616,0.00015643,2]
[368660242,1751271043754,-970.94,0.00015643,2]
[368660243,1751271043763,-932.43653584,0.00015643,2]
[368660281,1751271044326,-490.0,0.00015094,2]
[368660282,1751271044336,-490.0,0.00015368,2]
[368660284,1751271044345,-490.0,0.00015642,2]
[368660286,1751271044354,-198.84497925,0.00015643,2]
[368660288,1751271044382,-424.77275812,0.00015643,2]
[368660289,1751271044407,-415.05572679,0.00015643,2]
[368660290,1751271044417,-88.88088635,0.00015643,2]
[368660291,1751271044441,-507.86410943,0.00015643,2]
[368660294,1751271045754,-490.0,0.00015094,2]
[368660295,1751271045764,-166.666666,0.00015309,2]
[368660296,1751271045773,-83.8333333,0.00015309,2]
[368660297,1751271045908,-1862.5366667,0.00015309,2]
[368660298,1751271045918,-269.79058545,0.00015368,2]
[368660299,1751271045930,-182.94941455,0.00015368,2]
[368660300,1751271045939,-1102.78027147,0.00015643,2]
[368660301,1751271045961,-679.40528476,0.00015583,2]
[368660302,1751271045972,-378.43528873,0.00015583,2]
[368660303,1751271045984,-323.08114491,0.00015583,2]
[368660304,1751271045996,-556.81298057,0.00015583,2]
[368660305,1751271046023,-8.63530103,0.00015583,2]
[368660306,1751271046033,-7.27473275,0.00015643,2]
[368660307,1751271046043,-1945.23975802,0.00015643,2]
[368660314,1751271315698,383.51,0.00013699,2]
[368660317,1751271420906,172.83,0.0001186,2]
[368660325,1751271677341,-169.25770157,0.00014201,2]
[368660326,1751271677368,-1413.98,0.00014201,2]
[368660327,1751271677394,-200.0,0.00014201,7]
[368660328,1751271677420,-167.35891663,0.00014371,2]
[368660329,1751271677445,-167.47,0.00014627,2]
[368660330,1751271677469,-150.0,0.00014825,2]
[368660331,1751271677497,-1200.0,0.00014825,2]
[368660332,1751271677825,-300.0,0.00014825,2]
[368660333,1751271677854,-16231.9333818,0.00014826,2]
[368660373,1751272231882,-706.99,0.00014325,2]
[368660374,1751272231892,-1000.0,0.00014388,2]
[368660375,1751272231901,-169.06,0.00014776,2]
[368660376,1751272231911,-338.75247183,0.000148,5]
[368660377,1751272231923,-61.24752817,0.000148,5]
[368660378,1751272231932,-423.59708003,0.00014825,2]
[368660379,1751272231944,-776.40291997,0.00014825,2]
[368660380,1751272231953,-865.33293935,0.00014826,2]
[368660381,1751272231965,-738.6896368,0.00014826,2]
[368660382,1751272231976,-338.76638364,0.00014826,2]
[368660383,1751272232010,-675.0,0.00014826,2]
[368660384,1751272232029,-5050.27765841,0.00014826,2]
[368660385,1751272232039,-326.83,0.00014826,2]
[368660386,1751272232052,-250.0,0.00014826,2]
[368660387,1751272232061,-800.0,0.000149,5]
[368660388,1751272232073,-5358.74548721,0.00014994,2]
[368660389,1751272232082,-250.0,0.00015,2]
[368660390,1751272232092,-491.48116399,0.00015093,2]
[368660391,1751272232101,-490.0,0.00015093,2]
[368660392,1751272232111,-1512.08,0.00015093,2]
[368660393,1751272232121,-622.43,0.00015093,2]
[368660394,1751272232131,-1508.0,0.00015093,2]
[368660395,1751272232141,-490.0,0.00015093,2]
[368660396,1751272232151,-490.0,0.00015093,2]
[368660397,1751272232161,-617.46,0.00015093,2]
[368660398,1751272232170,-490.0,0.00015093,2]
[368660400,1751272232180,-1098.44,0.00015093,2]
[368660402,1751272232189,-487.40929814,0.00015093,2]
[368660404,1751272232198,-490.0,0.00015093,2]
[368660406,1751272232208,-3145.3,0.00015093,2]
[368660407,1751272232217,-1467.67,0.00015093,2]
[368660409,1751272232226,-682.93,0.00015093,2]
[368660411,1751272232235,-1257.98,0.00015093,2]
[368660414,1751272232245,-1049.66,0.00015093,2]
[368660417,1751272232254,-490.0,0.00015093,2]
[368660419,1751272232263,-490.0,0.00015093,2]
[368660421,1751272232273,-1856.95,0.00015093,2]
[368660423,1751272232282,-1383.66,0.00015093,2]
[368660425,1751272232291,-490.0,0.00015093,2]
[368660426,1751272232511,-1274.3,0.00015093,2]
[368660427,1751272232521,-1413.68,0.00015093,2]
[368660428,1751272232531,-490.0,0.00015093,2]
[368660429,1751272232540,-1763.91,0.00015093,2]
[368660430,1751272232550,-490.0,0.00015093,2]
[368660431,1751272232560,-1180.68,0.00015093,2]
[368660432,1751272232570,-1144.21,0.00015093,2]
[368660433,1751272232579,-5226.14,0.00015093,2]
[368660434,1751272232589,-490.0,0.00015093,2]
[368660435,1751272232599,-1300.76,0.00015093,2]
[368660436,1751272232610,-490.0,0.00015093,2]
[368660437,1751272232620,-928.42,0.00015093,2]
[368660438,1751272232629,-555.01,0.00015093,2]
[368660439,1751272232638,-1784.18,0.00015093,2]
[368660440,1751272232648,-8717.95,0.00015093,2]
[368660441,1751272232657,-490.0,0.00015094,2]
[368660442,1751272232667,-490.0,0.00015094,2]
[368660443,1751272232676,-490.0,0.00015094,2]
[368660444,1751272232686,-500.0,0.00015094,2]
[368660445,1751272232696,-150.0,0.00015094,2]
[368660446,1751272232705,-2058.8,0.00015094,2]
[368660447,1751272232715,-1040.01,0.00015094,2]
[368660448,1751272232724,-191.48439803,0.00015094,2]
[368660449,1751272232737,-1308.51560197,0.00015094,2]
[368660450,1751272232747,-853.21,0.00015094,2]
[368660451,1751272232756,-635.85,0.00015094,2]
[368660452,1751272232766,-490.0,0.00015094,2]
[368660453,1751272232775,-1983.9,0.00015094,2]